Workbook

Sheet ASV Report April to March 13
B3: Door Step School
B4: Cost Centre: Asha Silicon Valley
B5: 1st April 2012 to 31st March 2013
B6: Estimated Budget (INR) | C6: 2348000
B7: Amount Received (INR) : | C7: ='Receipt Details'!G8+'Receipt Details'!G9 -> 1911715
B9: Particulars | C9: Annual Estimated Budget | D9: April | E9: May | F9: June | G9: July | H9: August | I9: September | J9: October | K9: November | L9: December | M9: January | N9: February | O9: March | P9: Total
C10: (INR)
B11: Management Cost
B12: Management Salary (part cost) | C12: 75900 | D12: 6325 | E12: 6325 | F12: 6325 | G12: 6325 | H12: 6325 | I12: 6325 | J12: 6325 | K12: 6325 | L12: 6325 | M12: 6325 | N12: 6325 | O12: 6325 | P12: =SUM(D12:O12) -> 75900
B13: STAFF WELFARE
B14: Mediclaim
B15: Supervisors and Coordinators | C15: 450 | D15: 0 | E15: 0 | F15: 0 | G15: 0 | H15: 0 | I15: 0 | P15: =SUM(D15:O15) -> 0
B16: Teachers | C16: 16200 | D16: 0 | E16: 0 | F16: 0 | G16: 0 | H16: 0 | I16: 0 | J16: 0 | K16: 0 | L16: 0 | M16: 0 | N16: 0 | O16: 16024 | P16: =SUM(D16:O16) -> 16024
B17: Staff Event | C17: 8400 | D17: =SUM(D15:D16) -> 0 | E17: 736 | F17: 0 | G17: 0 | H17: =SUM(H15:H16) -> 0 | I17: 110 | J17: 247 | K17: 440 | L17: 110 | M17: 110 | N17: 0 | O17: 0 | P17: =SUM(D17:O17) -> 1753
B18: PROGRAM EXPENSES
B19: Teachers Salaries | C19: 1339200 | D19: 120240 | E19: 100571 | F19: 102577 | G19: 102732 | H19: 108794 | I19: 114761 | J19: 120366 | K19: 133918 | L19: 131335 | M19: 100405 | N19: 95724 | O19: 95713 | P19: =SUM(D19:O19) -> 1327136
B20: Coordinator Salaries | C20: 138919 | D20: 9607 | E20: 10091 | F20: 10028 | G20: 10741 | H20: 12482 | I20: 11322 | J20: 11402 | K20: 10023 | L20: 12182 | M20: 13724 | N20: 13988 | O20: 13915 | P20: =SUM(D20:O20) -> 139505
B21: Supervisors Salaries | C21: 188487 | D21: 14036 | E21: 14210 | F21: 14150 | G21: 14779 | H21: 17095 | I21: 16082 | J21: 16063 | K21: 16039 | L21: 15627 | M21: 16086 | N21: 16635 | O21: 16118 | P21: =SUM(D21:O21) -> 186920
B22: Teaching & Educational Material | C22: 84480 | D22: 2120 | E22: 10 | F22: 11376 | G22: 6085.45 | H22: 19414 | I22: 4219 | J22: 214 | K22: 2708 | L22: 121 | M22: 18434 | N22: 357 | O22: 494 | P22: =SUM(D22:O22) -> 65552.45
B23: Picnic/Events | C23: 22000 | D23: 0 | E23: 0 | F23: 0 | G23: 0 | H23: 2302 | I23: 0 | J23: 200 | K23: 9447 | L23: 1175 | M23: 1700 | N23: 590 | O23: 0 | P23: =SUM(D23:O23) -> 15414
B24: Miscellaneous | C24: 8800 | D24: 0 | E24: =2932.5+600 -> 3532.5 | F24: =966+600 -> 1566 | G24: =530+600 -> 1130 | H24: =969+600 -> 1569 | I24: =916+600 -> 1516 | J24: 1772 | K24: 620 | L24: 1300 | M24: 697 | N24: 7016 | O24: 1200 | P24: =SUM(D24:O24) -> 21918.5
B25: Transport | C25: 250000 | D25: 25800 | E25: 0 | F25: 20100 | G25: =20100+90 -> 20190 | H25: 25200 | I25: 25200 | J25: =3000+5000+3000+6000 -> 17000 | K25: =3000+5000+3000+5100 -> 16100 | L25: =4433+3333+1000+4500 -> 13266 | M25: =2000+7000+2000+5700 -> 16700 | N25: =10000+7000+3000+6600 -> 26600 | O25: =20000+7000+3000+11400 -> 41400 | P25: =SUM(D25:O25) -> 247556
B26: ADMINISTRATIVE EXPENSES
B27: Telephone, stationary, postage, admin staff and other organizational costs @ approx 10% of Total of I+ II+III | C27: 213373.569 | D27: =C27/12 -> 17781.13075 | E27: 17781.13075 | F27: 17781.13075 | G27: 17781.13075 | H27: 17781.13075 | I27: 17781.13075 | J27: 2670 | K27: 2670 | L27: 2670 | M27: 2670 | N27: 2670 | O27: 2671 | P27: =SUM(D27:O27) -> 122707.7845
B28: Grand Total I+ II+III+IV( Rounded) | C28: =SUM(C12:C27) -> 2346209.569 | D28: =SUM(D12:D27) -> 195909.1308 | E28: =SUM(E12:E27) -> 153256.6308 | F28: =SUM(F12:F27) -> 183903.1308 | G28: =SUM(G12:G27) -> 179763.5808 | H28: =SUM(H12:H27) -> 210962.1308 | I28: =SUM(I12:I27) -> 197316.1308 | J28: =SUM(J12:J27) -> 176259 | K28: =SUM(K12:K27) -> 198290 | L28: =SUM(L12:L27) -> 184111 | M28: =SUM(M12:M27) -> 176851 | N28: =SUM(N12:N27) -> 169905 | O28: =SUM(O12:O27) -> 193860 | P28: =SUM(P12:P27) -> 2220386.735
B32: A. Funds Received from by Asha Silicon Valley | F32: ='Receipt Details'!G8+'Receipt Details'!G9 -> 1911715
B33: B. Total Expenses | F33: =P28 -> 2220386.735
B34: C. Balance collected with the help of builders and other individual donors ( B -A) | F34: =F33-F32 -> 308671.7345
B37: Notes:
B38: 1. Staff welfare: | C38: Staff event program has been supported by other donors. Hence the funds are unutilized.
B39: 2. Mediclaim: | C39: Part of the mediclaim cost is recovered from the salary of the employees and remaining cost is borne by our Funding Partners.
B40: 3. Administrative Expenses: | C40: The actual administrative expenditure is less than the budgeted amount. Hence the funds are partially utilized.

Sheet Receipt Details
C6: Receipt Details
C7: Receipt no | D7: Day | E7: Month | F7: Year | G7: Amount Received in Rs. | H7: Title | I7: Name | J7: Type of Organization | K7: Program
C8: 237 | D8: 30 | E8: May | F8: 2012 | G8: 958034 | H8: M/s. | I8: Asha Silicon Valley | J8: Grant | K8: EAC
C9: 267 | D9: 3 | E9: Jan. | F9: 2013 | G9: 953681 | H9: M/s. | I9: Asha Silicon Valley | J9: Grant | K9: EAC
